[Event "Titled Tuesday Blitz July 26 Late 2022"]
[White "Averjanov, Alexey"]
[Black "Wachinger, Guenther"]
[WhiteFideId "14109867"]
[BlackFideId "4604261"]
[WhiteElo "2615"]
[BlackElo "2212"]
[Result "1-0"]
[Round "09"]
[TimeControl "180+1"]
[Date "2022.07.26"]
[WhiteClock "0:01:17"]
[BlackClock "0:00:02"]

1. d4 {[%clk 0:03:00]}  d5 {[%clk 0:02:57]} 2. c4 {[%clk 0:02:57]}  e6 {[%clk 0:02:56]} 3. Nf3 {[%clk 0:02:56]}  c6 {[%clk 0:02:56]} 4. e3 {[%clk 0:02:50]}  f5 {[%clk 0:02:55]} 5. g3 {[%clk 0:02:50]}  Nf6 {[%clk 0:02:54]} 6. Bg2 {[%clk 0:02:50]}  Bd6 {[%clk 0:02:54]} 7. O-O {[%clk 0:02:51]}  O-O {[%clk 0:02:54]} 8. b3 {[%clk 0:02:51]}  Bd7 {[%clk 0:02:53]} 9. Ba3 {[%clk 0:02:50]}  Bxa3 {[%clk 0:02:48]} 10. Nxa3 {[%clk 0:02:51]}  Be8 {[%clk 0:02:48]} 11. Nc2 {[%clk 0:02:51]}  Bh5 {[%clk 0:02:48]} 12. Nce1 {[%clk 0:02:52]}  Nbd7 {[%clk 0:02:46]} 13. Qc2 {[%clk 0:02:52]}  Bxf3 {[%clk 0:02:45]} 14. Nxf3 {[%clk 0:02:50]}  Ne4 {[%clk 0:02:45]} 15. Nd2 {[%clk 0:02:51]}  Nxd2 {[%clk 0:02:44]} 16. Qxd2 {[%clk 0:02:51]}  Nf6 {[%clk 0:02:45]} 17. Qd3 {[%clk 0:02:51]}  Qd6 {[%clk 0:02:44]} 18. Rab1 {[%clk 0:02:49]}  a5 {[%clk 0:02:38]} 19. Rfc1 {[%clk 0:02:48]}  Ne4 {[%clk 0:02:35]} 20. Qc2 {[%clk 0:02:46]}  g5 {[%clk 0:02:13]} 21. Qb2 {[%clk 0:02:45]}  Kg7 {[%clk 0:02:02]} 22. a3 {[%clk 0:02:45]}  h5 {[%clk 0:01:59]} 23. b4 {[%clk 0:02:44]}  h4 {[%clk 0:01:41]} 24. bxa5 {[%clk 0:02:43]}  Rf7 {[%clk 0:01:40]} 25. Qb4 {[%clk 0:02:42]}  hxg3 {[%clk 0:01:34]} 26. hxg3 {[%clk 0:02:39]}  Qc7 {[%clk 0:01:28]} 27. cxd5 {[%clk 0:02:36]}  exd5 {[%clk 0:01:27]} 28. Qb6 {[%clk 0:02:35]}  Rxa5 {[%clk 0:01:13]} 29. Qxc7 {[%clk 0:02:33]}  Rxc7 {[%clk 0:01:13]} 30. Rb3 {[%clk 0:02:34]}  Kf6 {[%clk 0:00:59]} 31. Rcb1 {[%clk 0:02:33]}  b5 {[%clk 0:00:53]} 32. Rc1 {[%clk 0:02:31]}  Ke6 {[%clk 0:00:45]} 33. Bf1 {[%clk 0:02:28]}  Kd6 {[%clk 0:00:43]} 34. Bd3 {[%clk 0:02:27]}  Nd2 {[%clk 0:00:35]} 35. Rbc3 {[%clk 0:02:25]}  Nc4 {[%clk 0:00:33]} 36. Bxf5 {[%clk 0:02:20]}  Rxa3 {[%clk 0:00:29]} 37. Rxa3 {[%clk 0:02:18]}  Nxa3 {[%clk 0:00:29]} 38. e4 {[%clk 0:01:57]}  b4 {[%clk 0:00:23]} 39. e5+ {[%clk 0:01:51]}  Ke7 {[%clk 0:00:23]} 40. Bd3 {[%clk 0:01:50]}  b3 {[%clk 0:00:18]} 41. Rc3 {[%clk 0:01:49]}  Rb7 {[%clk 0:00:18]} 42. Rxc6 {[%clk 0:01:43]}  b2 {[%clk 0:00:17]} 43. Kg2 {[%clk 0:01:38]}  b1=Q {[%clk 0:00:15]} 44. Bxb1 {[%clk 0:01:39]}  Rxb1 {[%clk 0:00:16]} 45. Kf3 {[%clk 0:01:31]}  Nb5 {[%clk 0:00:11]} 46. Kg4 {[%clk 0:01:29]}  Nxd4 {[%clk 0:00:11]} 47. Rd6 {[%clk 0:01:28]}  Rb5 {[%clk 0:00:03]} 48. Kxg5 {[%clk 0:01:25]}  Ne6+ {[%clk 0:00:03]} 49. Kg6 {[%clk 0:01:23]}  d4 {[%clk 0:00:02]} 50. f4 {[%clk 0:01:20]}  Nf8+ {[%clk 0:00:02]} 51. Kf5 {[%clk 0:01:17]} 1-0


[Site "https://www.chess.com"]

[Event "Titled Tuesday Blitz July 26 Late 2022"]
[White "Bartholomew, John"]
[Black "Ozer, Omer Faruk"]
[WhiteFideId "2019353"]
[BlackFideId "6354564"]
[WhiteElo "2760"]
[BlackElo "2050"]
[Result "0-1"]
[Round "09"]
[TimeControl "180+1"]
[Date "2022.07.26"]
[WhiteClock "0:00:11"]
[BlackClock "0:00:51"]

1. Nf3 {[%clk 0:03:00]}  Nf6 {[%clk 0:02:59]} 2. c4 {[%clk 0:03:00]}  a6 {[%clk 0:02:58]} 3. Nc3 {[%clk 0:02:58]}  e6 {[%clk 0:02:57]} 4. Qc2 {[%clk 0:02:51]}  d5 {[%clk 0:02:55]} 5. e3 {[%clk 0:02:51]}  Be7 {[%clk 0:02:48]} 6. b3 {[%clk 0:02:51]}  c5 {[%clk 0:02:47]} 7. Bb2 {[%clk 0:02:50]}  Nc6 {[%clk 0:02:47]} 8. a3 {[%clk 0:02:48]}  d4 {[%clk 0:02:46]} 9. Ne4 {[%clk 0:02:44]}  Nxe4 {[%clk 0:02:41]} 10. Qxe4 {[%clk 0:02:44]}  f5 {[%clk 0:02:35]} 11. Qc2 {[%clk 0:02:41]}  Bf6 {[%clk 0:02:36]} 12. exd4 {[%clk 0:02:22]}  cxd4 {[%clk 0:02:34]} 13. c5 {[%clk 0:02:04]}  e5 {[%clk 0:02:24]} 14. Bc4 {[%clk 0:01:41]}  e4 {[%clk 0:02:22]} 15. Ng1 {[%clk 0:01:42]}  d3 {[%clk 0:02:13]} 16. Qc1 {[%clk 0:01:35]}  Nd4 {[%clk 0:02:07]} 17. Nh3 {[%clk 0:01:32]}  Nc2+ {[%clk 0:02:05]} 18. Kd1 {[%clk 0:01:24]}  Nxa1 {[%clk 0:02:00]} 19. Qxa1 {[%clk 0:01:23]}  Rf8 {[%clk 0:01:30]} 20. Re1 {[%clk 0:01:11]}  Bd7 {[%clk 0:01:14]} 21. Nf4 {[%clk 0:01:03]}  Bxb2 {[%clk 0:01:10]} 22. Qxb2 {[%clk 0:01:03]}  Qf6 {[%clk 0:01:10]} 23. Qxf6 {[%clk 0:00:57]}  Rxf6 {[%clk 0:01:11]} 24. Nd5 {[%clk 0:00:58]}  Rc6 {[%clk 0:01:11]} 25. Nb6 {[%clk 0:00:39]}  Rd8 {[%clk 0:01:07]} 26. b4 {[%clk 0:00:36]}  Be6 {[%clk 0:01:05]} 27. Bxe6 {[%clk 0:00:31]}  Rxe6 {[%clk 0:01:06]} 28. Kc1 {[%clk 0:00:27]}  Rxb6 {[%clk 0:00:59]} 29. cxb6 {[%clk 0:00:26]}  Rc8+ {[%clk 0:01:00]} 30. Kb1 {[%clk 0:00:20]}  Rc2 {[%clk 0:00:59]} 31. f3 {[%clk 0:00:21]}  Rxd2 {[%clk 0:00:59]} 32. fxe4 {[%clk 0:00:21]}  Re2 {[%clk 0:01:00]} 33. Rc1 {[%clk 0:00:19]}  fxe4 {[%clk 0:00:57]} 34. Rc8+ {[%clk 0:00:16]}  Kd7 {[%clk 0:00:56]} 35. Rc7+ {[%clk 0:00:17]}  Kd6 {[%clk 0:00:56]} 36. Kc1 {[%clk 0:00:17]}  e3 {[%clk 0:00:51]} 37. Rc8 {[%clk 0:00:12]}  Re1+ {[%clk 0:00:51]} 38. Kb2 {[%clk 0:00:12]}  d2 {[%clk 0:00:51]} 39. Rd8+ {[%clk 0:00:11]}  Kc6 {[%clk 0:00:51]} 0-1


[Site "https://www.chess.com"]

[Event "Titled Tuesday Blitz July 26 Late 2022"]
[White "Csonka, Balazs"]
[Black "Karas, Marek"]
[WhiteFideId "742910"]
[BlackFideId "14928558"]
[WhiteElo "2404"]
[BlackElo "2250"]
[Result "1-0"]
[Round "09"]
[TimeControl "180+1"]
[Date "2022.07.26"]
[WhiteClock "0:00:23"]
[BlackClock "0:01:33"]

1. c4 {[%clk 0:03:00]}  e5 {[%clk 0:02:59]} 2. g3 {[%clk 0:02:58]}  Nf6 {[%clk 0:02:59]} 3. Bg2 {[%clk 0:02:59]}  c6 {[%clk 0:02:59]} 4. Nf3 {[%clk 0:02:57]}  e4 {[%clk 0:02:59]} 5. Nd4 {[%clk 0:02:57]}  Qb6 {[%clk 0:03:00]} 6. Nb3 {[%clk 0:02:55]}  a5 {[%clk 0:03:00]} 7. d3 {[%clk 0:02:44]}  Bb4+ {[%clk 0:02:59]} 8. Nc3 {[%clk 0:02:42]}  exd3 {[%clk 0:02:56]} 9. Be3 {[%clk 0:02:11]}  Qc7 {[%clk 0:02:43]} 10. Qxd3 {[%clk 0:02:04]}  O-O {[%clk 0:02:37]} 11. a3 {[%clk 0:01:58]}  Be7 {[%clk 0:02:13]} 12. Bf4 {[%clk 0:01:37]}  Qb6 {[%clk 0:02:09]} 13. Na4 {[%clk 0:01:34]}  Qd8 {[%clk 0:02:05]} 14. c5 {[%clk 0:01:23]}  Na6 {[%clk 0:01:58]} 15. O-O {[%clk 0:01:16]}  Ne8 {[%clk 0:01:41]} 16. Rfd1 {[%clk 0:00:57]}  Nec7 {[%clk 0:01:38]} 17. Rac1 {[%clk 0:00:44]}  Ne6 {[%clk 0:01:35]} 18. Bd6 {[%clk 0:00:44]}  Bxd6 {[%clk 0:01:34]} 19. Qxd6 {[%clk 0:00:44]}  Qc7 {[%clk 0:01:33]} 20. f4 {[%clk 0:00:23]} 1-0


[Site "https://www.chess.com"]

[Event "Titled Tuesday Blitz July 26 Late 2022"]
[White "Golubev, Mikhail"]
[Black "Ismagilov, Damir"]
[WhiteFideId "14100983"]
[BlackFideId "34199982"]
[WhiteElo "2374"]
[BlackElo "2138"]
[Result "1-0"]
[Round "09"]
[TimeControl "180+1"]
[Date "2022.07.26"]
[WhiteClock "0:00:36"]
[BlackClock "0:01:18"]

1. e4 {[%clk 0:02:39]}  c5 {[%clk 0:02:56]} 2. Nf3 {[%clk 0:02:35]}  Nc6 {[%clk 0:02:56]} 3. Nc3 {[%clk 0:02:28]}  Nf6 {[%clk 0:02:55]} 4. Bb5 {[%clk 0:01:49]}  Nd4 {[%clk 0:02:51]} 5. e5 {[%clk 0:01:49]}  Nxb5 {[%clk 0:02:47]} 6. Nxb5 {[%clk 0:01:50]}  Nd5 {[%clk 0:02:47]} 7. Ng5 {[%clk 0:01:50]}  e6 {[%clk 0:02:32]} 8. Ne4 {[%clk 0:01:48]}  f6 {[%clk 0:02:24]} 9. Nbd6+ {[%clk 0:01:46]}  Bxd6 {[%clk 0:02:24]} 10. Nxd6+ {[%clk 0:01:46]}  Kf8 {[%clk 0:02:24]} 11. O-O {[%clk 0:01:35]}  fxe5 {[%clk 0:02:22]} 12. f4 {[%clk 0:01:34]}  exf4 {[%clk 0:02:13]} 13. d4 {[%clk 0:01:29]}  cxd4 {[%clk 0:01:57]} 14. Bxf4 {[%clk 0:01:21]}  Nf6 {[%clk 0:01:44]} 15. Be5 {[%clk 0:01:01]}  Qe7 {[%clk 0:01:39]} 16. Qxd4 {[%clk 0:00:59]}  Kg8 {[%clk 0:01:37]} 17. Bxf6 {[%clk 0:00:55]}  gxf6 {[%clk 0:01:34]} 18. Rxf6 {[%clk 0:00:55]}  b6 {[%clk 0:01:32]} 19. Raf1 {[%clk 0:00:50]}  Ba6 {[%clk 0:01:30]} 20. R1f3 {[%clk 0:00:39]}  h6 {[%clk 0:01:18]} 21. Rg3+ {[%clk 0:00:38]}  Kh7 {[%clk 0:01:18]} 22. Qe4# {[%clk 0:00:36]} 1-0


[Site "https://www.chess.com"]

[Event "Titled Tuesday Blitz July 26 Late 2022"]
[White "Goncalves, Davi Sulzbacher"]
[Black "Chiu, Isaac"]
[WhiteFideId "2154510"]
[BlackFideId "30900654"]
[WhiteElo "2107"]
[BlackElo "2181"]
[Result "1/2-1/2"]
[Round "09"]
[TimeControl "180+1"]
[Date "2022.07.27"]
[WhiteClock "0:00:09"]
[BlackClock "0:00:45"]

1. d4 {[%clk 0:03:00]}  c5 {[%clk 0:03:00]} 2. d5 {[%clk 0:03:00]}  g6 {[%clk 0:03:01]} 3. Nc3 {[%clk 0:03:00]}  Bg7 {[%clk 0:03:01]} 4. e4 {[%clk 0:03:01]}  Bxc3+ {[%clk 0:03:00]} 5. bxc3 {[%clk 0:03:01]}  d6 {[%clk 0:03:01]} 6. h4 {[%clk 0:02:59]}  Nf6 {[%clk 0:02:59]} 7. Bh6 {[%clk 0:02:17]}  Nxe4 {[%clk 0:02:50]} 8. Qf3 {[%clk 0:02:15]}  f5 {[%clk 0:02:45]} 9. Bd3 {[%clk 0:02:12]}  Qa5 {[%clk 0:02:43]} 10. Ne2 {[%clk 0:02:12]}  Nf6 {[%clk 0:02:28]} 11. Bg7 {[%clk 0:02:02]}  Rg8 {[%clk 0:02:27]} 12. Bxf6 {[%clk 0:02:02]}  exf6 {[%clk 0:02:27]} 13. Qe3+ {[%clk 0:01:58]}  Kf7 {[%clk 0:02:09]} 14. Qh6 {[%clk 0:01:58]}  Rg7 {[%clk 0:02:09]} 15. h5 {[%clk 0:01:45]}  Nd7 {[%clk 0:02:03]} 16. hxg6+ {[%clk 0:01:22]}  hxg6 {[%clk 0:02:04]} 17. Qh8 {[%clk 0:01:22]}  Nf8 {[%clk 0:01:54]} 18. Kf1 {[%clk 0:01:13]}  Bd7 {[%clk 0:01:44]} 19. Re1 {[%clk 0:01:09]}  Re8 {[%clk 0:01:42]} 20. Qh2 {[%clk 0:00:54]}  b5 {[%clk 0:01:36]} 21. Qxd6 {[%clk 0:00:49]}  c4 {[%clk 0:01:35]} 22. Rh8 {[%clk 0:00:31]}  cxd3 {[%clk 0:01:29]} 23. Rxf8+ {[%clk 0:00:29]}  Rxf8 {[%clk 0:01:30]} 24. Qxd7+ {[%clk 0:00:28]}  Kg8 {[%clk 0:01:30]} 25. Qe6+ {[%clk 0:00:28]}  Rgf7 {[%clk 0:01:22]} 26. cxd3 {[%clk 0:00:28]}  Qxa2 {[%clk 0:01:22]} 27. Nf4 {[%clk 0:00:25]}  Kg7 {[%clk 0:01:20]} 28. Qc6 {[%clk 0:00:20]}  Qd2 {[%clk 0:01:17]} 29. Ne6+ {[%clk 0:00:20]}  Kg8 {[%clk 0:01:12]} 30. Nxf8 {[%clk 0:00:19]}  Qxd3+ {[%clk 0:01:09]} 31. Kg1 {[%clk 0:00:19]}  Kxf8 {[%clk 0:01:10]} 32. d6 {[%clk 0:00:16]}  Kg7 {[%clk 0:01:02]} 33. Re7 {[%clk 0:00:07]}  Qd1+ {[%clk 0:00:44]} 34. Kh2 {[%clk 0:00:07]}  Qh5+ {[%clk 0:00:45]} 35. Kg1 {[%clk 0:00:08]}  Qd1+ {[%clk 0:00:44]} 36. Kh2 {[%clk 0:00:08]}  Qh5+ {[%clk 0:00:44]} 37. Kg1 {[%clk 0:00:09]}  Qd1+ {[%clk 0:00:45]} 1/2-1/2


[Site "https://www.chess.com"]

[Event "Titled Tuesday Blitz July 26 Late 2022"]
[White "Grigoriants, Sergey"]
[Black "Martinez Alcantara, Jose Eduardo"]
[WhiteFideId "4130804"]
[BlackFideId "3805662"]
[WhiteElo "2502"]
[BlackElo "2703"]
[Result "1-0"]
[Round "09"]
[TimeControl "180+1"]
[Date "2022.07.26"]
[WhiteClock "0:00:26"]
[BlackClock "0:00:17"]

1. e4 {[%clk 0:03:00]}  e5 {[%clk 0:03:00]} 2. Nf3 {[%clk 0:03:00]}  Nf6 {[%clk 0:03:01]} 3. Nxe5 {[%clk 0:02:57]}  d6 {[%clk 0:03:01]} 4. Nd3 {[%clk 0:02:57]}  Nxe4 {[%clk 0:03:00]} 5. Qe2 {[%clk 0:02:57]}  Qe7 {[%clk 0:03:01]} 6. Nf4 {[%clk 0:02:57]}  Nf6 {[%clk 0:03:01]} 7. d4 {[%clk 0:02:57]}  Nc6 {[%clk 0:02:53]} 8. Be3 {[%clk 0:02:55]}  Bf5 {[%clk 0:02:44]} 9. Nc3 {[%clk 0:02:48]}  O-O-O {[%clk 0:02:34]} 10. O-O-O {[%clk 0:02:42]}  d5 {[%clk 0:02:24]} 11. h3 {[%clk 0:02:21]}  h5 {[%clk 0:02:20]} 12. Nd3 {[%clk 0:02:11]}  g6 {[%clk 0:02:07]} 13. Nc5 {[%clk 0:02:05]}  Qe8 {[%clk 0:01:52]} 14. Qb5 {[%clk 0:01:49]}  Bxc5 {[%clk 0:01:51]} 15. Qxc5 {[%clk 0:01:50]}  Nd7 {[%clk 0:01:34]} 16. Qxd5 {[%clk 0:01:34]}  Bxc2 {[%clk 0:01:33]} 17. Rd2 {[%clk 0:01:22]}  Bf5 {[%clk 0:01:30]} 18. Qb5 {[%clk 0:01:09]}  Nb6 {[%clk 0:00:54]} 19. d5 {[%clk 0:01:03]}  Ne5 {[%clk 0:00:38]} 20. b3 {[%clk 0:01:01]}  Qxb5 {[%clk 0:00:36]} 21. Bxb5 {[%clk 0:01:01]}  f6 {[%clk 0:00:29]} 22. Rhd1 {[%clk 0:00:56]}  a6 {[%clk 0:00:25]} 23. Be2 {[%clk 0:00:54]}  Rhe8 {[%clk 0:00:17]} 24. d6 {[%clk 0:00:53]}  Ned7 {[%clk 0:00:14]} 25. g4 {[%clk 0:00:42]}  hxg4 {[%clk 0:00:14]} 26. hxg4 {[%clk 0:00:42]}  Be6 {[%clk 0:00:15]} 27. dxc7 {[%clk 0:00:31]}  Kxc7 {[%clk 0:00:16]} 28. Bf3 {[%clk 0:00:31]}  Ne5 {[%clk 0:00:16]} 29. Rxd8 {[%clk 0:00:26]}  Rxd8 {[%clk 0:00:15]} 30. Bxb6+ {[%clk 0:00:26]}  Kxb6 {[%clk 0:00:16]} 31. Rxd8 {[%clk 0:00:26]}  Nxf3 {[%clk 0:00:17]} 32. Rd6+ {[%clk 0:00:26]} 1-0


[Site "https://www.chess.com"]

[Event "Titled Tuesday Blitz July 26 Late 2022"]
[White "Grischuk, Alexander"]
[Black "Oparin, Grigoriy"]
[WhiteFideId "4126025"]
[BlackFideId "24125890"]
[WhiteElo "2762"]
[BlackElo "2639"]
[Result "1-0"]
[Round "09"]
[TimeControl "180+1"]
[Date "2022.07.26"]
[WhiteClock "0:00:03"]
[BlackClock "0:00:06"]

1. d4 {[%clk 0:03:00]}  Nf6 {[%clk 0:03:00]} 2. c4 {[%clk 0:03:01]}  e6 {[%clk 0:03:00]} 3. Nc3 {[%clk 0:03:01]}  Bb4 {[%clk 0:03:00]} 4. e3 {[%clk 0:03:01]}  O-O {[%clk 0:03:00]} 5. Bd3 {[%clk 0:03:02]}  c5 {[%clk 0:03:01]} 6. Nf3 {[%clk 0:03:00]}  Nc6 {[%clk 0:02:58]} 7. O-O {[%clk 0:02:57]}  Bxc3 {[%clk 0:02:58]} 8. bxc3 {[%clk 0:02:57]}  d6 {[%clk 0:02:59]} 9. e4 {[%clk 0:02:54]}  e5 {[%clk 0:02:59]} 10. h3 {[%clk 0:02:55]}  h6 {[%clk 0:02:42]} 11. a4 {[%clk 0:02:43]}  Rb8 {[%clk 0:02:40]} 12. Ra2 {[%clk 0:02:35]}  Bd7 {[%clk 0:02:36]} 13. d5 {[%clk 0:02:19]}  Ne7 {[%clk 0:02:36]} 14. Nh4 {[%clk 0:01:54]}  g5 {[%clk 0:02:22]} 15. Qf3 {[%clk 0:01:44]}  Nh7 {[%clk 0:02:11]} 16. Nf5 {[%clk 0:01:39]}  Nxf5 {[%clk 0:02:09]} 17. exf5 {[%clk 0:01:40]}  Re8 {[%clk 0:02:09]} 18. g4 {[%clk 0:01:28]}  Qf6 {[%clk 0:01:43]} 19. Be4 {[%clk 0:01:19]}  Kf8 {[%clk 0:01:44]} 20. a5 {[%clk 0:01:14]}  Ke7 {[%clk 0:01:43]} 21. Kg2 {[%clk 0:01:11]}  Kd8 {[%clk 0:01:43]} 22. Be3 {[%clk 0:01:10]}  Kc7 {[%clk 0:01:44]} 23. Rb2 {[%clk 0:01:02]}  Qd8 {[%clk 0:01:42]} 24. Qg3 {[%clk 0:00:46]}  Nf6 {[%clk 0:01:37]} 25. f3 {[%clk 0:00:36]}  Nxe4 {[%clk 0:01:19]} 26. fxe4 {[%clk 0:00:37]}  f6 {[%clk 0:01:19]} 27. h4 {[%clk 0:00:34]}  Rh8 {[%clk 0:01:14]} 28. Rh1 {[%clk 0:00:33]}  Qe7 {[%clk 0:01:13]} 29. Kf3 {[%clk 0:00:30]}  Rbg8 {[%clk 0:01:13]} 30. Rbh2 {[%clk 0:00:28]}  Qf8 {[%clk 0:01:05]} 31. Rh3 {[%clk 0:00:23]}  Ba4 {[%clk 0:00:50]} 32. Qh2 {[%clk 0:00:20]}  gxh4 {[%clk 0:00:37]} 33. Rxh4 {[%clk 0:00:21]}  Qg7 {[%clk 0:00:37]} 34. Qh3 {[%clk 0:00:18]}  Bb3 {[%clk 0:00:33]} 35. Rxh6 {[%clk 0:00:11]}  Rxh6 {[%clk 0:00:33]} 36. Bxh6 {[%clk 0:00:12]}  Qd7 {[%clk 0:00:31]} 37. Be3 {[%clk 0:00:11]}  Rg7 {[%clk 0:00:21]} 38. Qh6 {[%clk 0:00:07]}  Qf7 {[%clk 0:00:21]} 39. g5 {[%clk 0:00:06]}  fxg5 {[%clk 0:00:20]} 40. Qe6 {[%clk 0:00:05]}  g4+ {[%clk 0:00:19]} 41. Kg3 {[%clk 0:00:05]}  Qd7 {[%clk 0:00:15]} 42. f6 {[%clk 0:00:03]}  Rf7 {[%clk 0:00:15]} 43. Rh6 {[%clk 0:00:02]}  Bxc4 {[%clk 0:00:14]} 44. Qxd7+ {[%clk 0:00:02]}  Kxd7 {[%clk 0:00:14]} 45. Kxg4 {[%clk 0:00:03]}  Bd3 {[%clk 0:00:09]} 46. Kf5 {[%clk 0:00:03]}  b5 {[%clk 0:00:10]} 47. axb6 {[%clk 0:00:03]}  axb6 {[%clk 0:00:10]} 48. Rh4 {[%clk 0:00:03]}  Rf8 {[%clk 0:00:07]} 49. Bh6 {[%clk 0:00:03]}  Ra8 {[%clk 0:00:04]} 50. f7 {[%clk 0:00:02]}  Ke7 {[%clk 0:00:05]} 51. f8=Q+ {[%clk 0:00:02]}  Rxf8+ {[%clk 0:00:05]} 52. Bxf8+ {[%clk 0:00:03]}  Kxf8 {[%clk 0:00:06]} 53. Kf6 {[%clk 0:00:03]} 1-0


[Site "https://www.chess.com"]

[Event "Titled Tuesday Blitz July 26 Late 2022"]
[White "Haitin, Ilja"]
[Black "Altman, Joshua"]
[WhiteFideId "4501764"]
[BlackFideId "426210"]
[WhiteElo "2209"]
[BlackElo "1945"]
[Result "1-0"]
[Round "09"]
[TimeControl "180+1"]
[Date "2022.07.27"]
[WhiteClock "0:00:05"]
[BlackClock "0:00:16"]

1. d4 {[%clk 0:02:32]}  Nf6 {[%clk 0:02:59]} 2. Nf3 {[%clk 0:02:26]}  e6 {[%clk 0:03:00]} 3. Bg5 {[%clk 0:02:26]}  b6 {[%clk 0:02:59]} 4. e3 {[%clk 0:02:24]}  Bb7 {[%clk 0:02:59]} 5. Bd3 {[%clk 0:02:25]}  Be7 {[%clk 0:03:00]} 6. c3 {[%clk 0:02:25]}  O-O {[%clk 0:03:00]} 7. Nbd2 {[%clk 0:02:25]}  c5 {[%clk 0:03:01]} 8. O-O {[%clk 0:02:25]}  cxd4 {[%clk 0:03:01]} 9. exd4 {[%clk 0:02:25]}  d6 {[%clk 0:03:01]} 10. Bxf6 {[%clk 0:02:24]}  Bxf6 {[%clk 0:03:01]} 11. Qe2 {[%clk 0:02:25]}  Nd7 {[%clk 0:03:01]} 12. Rfe1 {[%clk 0:02:23]}  h6 {[%clk 0:02:57]} 13. Bc2 {[%clk 0:02:21]}  Be7 {[%clk 0:02:54]} 14. Rad1 {[%clk 0:02:20]}  Nf6 {[%clk 0:02:52]} 15. Ne4 {[%clk 0:02:20]}  Nxe4 {[%clk 0:02:52]} 16. Bxe4 {[%clk 0:02:21]}  Bxe4 {[%clk 0:02:52]} 17. Qxe4 {[%clk 0:02:20]}  d5 {[%clk 0:02:50]} 18. Qg4 {[%clk 0:02:18]}  Bf6 {[%clk 0:02:44]} 19. Ne5 {[%clk 0:02:18]}  b5 {[%clk 0:02:34]} 20. a3 {[%clk 0:02:17]}  a5 {[%clk 0:02:34]} 21. Rd3 {[%clk 0:02:17]}  Bxe5 {[%clk 0:02:32]} 22. dxe5 {[%clk 0:02:15]}  g6 {[%clk 0:02:22]} 23. Rh3 {[%clk 0:02:10]}  Kg7 {[%clk 0:02:17]} 24. Ree3 {[%clk 0:01:49]}  Rc8 {[%clk 0:02:16]} 25. Qf4 {[%clk 0:01:42]}  h5 {[%clk 0:01:39]} 26. Reg3 {[%clk 0:01:14]}  Rc4 {[%clk 0:01:31]} 27. Qf3 {[%clk 0:01:14]}  Re4 {[%clk 0:01:00]} 28. Kf1 {[%clk 0:01:01]}  Rxe5 {[%clk 0:00:38]} 29. Rxh5 {[%clk 0:01:00]}  Rxh5 {[%clk 0:00:33]} 30. Qxh5 {[%clk 0:01:00]}  Qc7 {[%clk 0:00:22]} 31. Qe2 {[%clk 0:00:57]}  Qc4 {[%clk 0:00:20]} 32. Rd3 {[%clk 0:00:52]}  Rh8 {[%clk 0:00:19]} 33. h3 {[%clk 0:00:50]}  Rh4 {[%clk 0:00:18]} 34. Kg1 {[%clk 0:00:40]}  Re4 {[%clk 0:00:17]} 35. Qd2 {[%clk 0:00:39]}  b4 {[%clk 0:00:14]} 36. axb4 {[%clk 0:00:38]}  axb4 {[%clk 0:00:14]} 37. Rf3 {[%clk 0:00:29]}  bxc3 {[%clk 0:00:11]} 38. bxc3 {[%clk 0:00:30]}  Re2 {[%clk 0:00:08]} 39. Qg5 {[%clk 0:00:25]}  Re1+ {[%clk 0:00:03]} 40. Kh2 {[%clk 0:00:25]}  f5 {[%clk 0:00:02]} 41. Rg3 {[%clk 0:00:19]}  f4 {[%clk 0:00:01]} 42. Qxg6+ {[%clk 0:00:19]}  Kf8 {[%clk 0:00:01]} 43. Qf6+ {[%clk 0:00:13]}  Ke8 {[%clk 0:00:01]} 44. Rg8+ {[%clk 0:00:12]}  Kd7 {[%clk 0:00:02]} 45. Qd8+ {[%clk 0:00:09]}  Kc6 {[%clk 0:00:02]} 46. Qc8+ {[%clk 0:00:08]}  Kb5 {[%clk 0:00:03]} 47. Qd7+ {[%clk 0:00:07]}  Kc5 {[%clk 0:00:03]} 48. Rc8+ {[%clk 0:00:07]}  Kb6 {[%clk 0:00:04]} 49. Rxc4 {[%clk 0:00:06]}  dxc4 {[%clk 0:00:04]} 50. Qd6+ {[%clk 0:00:06]}  Kb5 {[%clk 0:00:05]} 51. Qxf4 {[%clk 0:00:05]}  Rb1 {[%clk 0:00:06]} 52. Qe5+ {[%clk 0:00:04]}  Ka4 {[%clk 0:00:07]} 53. Qxe6 {[%clk 0:00:04]}  Kb3 {[%clk 0:00:07]} 54. Qe5 {[%clk 0:00:04]}  Rc1 {[%clk 0:00:08]} 55. h4 {[%clk 0:00:03]}  Rxc3 {[%clk 0:00:09]} 56. h5 {[%clk 0:00:03]}  Rd3 {[%clk 0:00:09]} 57. h6 {[%clk 0:00:03]}  c3 {[%clk 0:00:10]} 58. Qb5+ {[%clk 0:00:02]}  Kc2 {[%clk 0:00:11]} 59. h7 {[%clk 0:00:02]}  Rd8 {[%clk 0:00:10]} 60. Qf5+ {[%clk 0:00:01]}  Kb2 {[%clk 0:00:10]} 61. Qf6 {[%clk 0:00:01]}  Re8 {[%clk 0:00:09]} 62. h8=Q {[%clk 0:00:01]}  Rxh8+ {[%clk 0:00:09]} 63. Qxh8 {[%clk 0:00:02]}  Kb1 {[%clk 0:00:10]} 64. Qxc3 {[%clk 0:00:02]}  Ka2 {[%clk 0:00:09]} 65. Qf3 {[%clk 0:00:03]}  Kb1 {[%clk 0:00:10]} 66. g4 {[%clk 0:00:04]}  Ka2 {[%clk 0:00:11]} 67. g5 {[%clk 0:00:04]}  Kb1 {[%clk 0:00:12]} 68. g6 {[%clk 0:00:05]}  Kc1 {[%clk 0:00:13]} 69. g7 {[%clk 0:00:06]}  Kd2 {[%clk 0:00:14]} 70. g8=Q {[%clk 0:00:06]}  Ke1 {[%clk 0:00:15]} 71. Qg1+ {[%clk 0:00:05]}  Kd2 {[%clk 0:00:16]} 72. Qgd1# {[%clk 0:00:05]} 1-0


[Site "https://www.chess.com"]